bitfinex-derivatives/quotes_BNBF0:USTF0_20260114
["timestamp","ask_amount","ask_price","bid_price","bid_amount"]
[1768371293555,0.77373458,939.88,938.85,1.5972152]
[1768371293757,0.77373458,939.87,938.85,1.5972152]
[1768371293957,0.77373458,939.86,938.85,1.5972152]
[1768371294160,0.77373458,939.85,938.85,1.5972152]
[1768371294456,0.77373458,939.84,938.85,1.5972152]
[1768371294655,0.77373458,939.83,938.85,1.5972152]
[1768371294859,0.77373458,939.82,938.85,1.5972152]
[1768371295156,0.77373458,939.81,938.85,1.5972152]
[1768371295356,0.77373458,939.8,938.85,1.5972152]
[1768371295655,0.77373458,939.79,938.85,1.5972152]
[1768371295856,0.77373458,939.78,938.85,1.5972152]
[1768371296058,0.77373458,939.77,938.85,1.5972152]
[1768371296258,0.77364783,939.76,938.85,1.5972152]
[1768371296461,0.77364783,939.75,938.85,1.5972152]
[1768371296657,0.77364783,939.74,938.85,1.5972152]
[1768371296957,0.77364783,939.73,938.85,1.5972152]
[1768371297156,0.77364783,939.72,938.85,1.5972152]
[1768371297358,0.18525222,940.4,938.85,1.5972152]
[1768371297558,0.77362068,940.39,938.85,1.5972152]
[1768371297758,0.77362068,940.38,938.85,1.5972152]
[1768371297957,0.77362068,940.37,938.85,1.5972152]
[1768371298156,0.77362068,940.36,938.85,1.5972152]
[1768371298358,0.77362068,940.35,938.85,1.5972152]
[1768371298558,0.77362068,940.34,938.85,1.5972152]
[1768371298759,0.77362068,940.33,938.85,1.5972152]
[1768371298958,0.77362068,940.32,938.85,1.5972152]
[1768371299258,0.77362068,940.31,938.85,1.5972152]
[1768371299461,0.77362068,940.3,938.85,1.5972152]
[1768371299759,0.77362068,940.29,938.85,1.5972152]
[1768371299958,0.77362068,940.28,938.85,1.5972152]
[1768371300158,0.77362068,940.27,938.85,1.5972152]
[1768371300360,0.77362068,940.26,938.85,1.5972152]
[1768371300557,0.77362068,940.25,938.85,1.5972152]
[1768371300760,0.77362068,940.24,938.85,1.5972152]
[1768371300958,0.77362068,940.23,938.85,1.5972152]
[1768371301163,0.77362068,940.22,938.85,1.5972152]
[1768371301362,0.77362068,940.21,938.85,1.5972152]
[1768371301563,0.77362068,940.2,938.85,1.5972152]
[1768371301760,0.77362068,940.19,938.85,1.5972152]
[1768371302065,0.77362068,940.18,938.85,1.5972152]
[1768371302364,0.77362068,940.17,938.85,1.5972152]
[1768371302560,0.77362068,940.16,938.85,1.5972152]
[1768371302762,0.77362068,940.15,938.85,1.5972152]
[1768371302962,0.18525222,940.4,938.85,1.5972152]
[1768371302963,0.77362068,940.14,938.85,1.5972152]
[1768371303161,0.77362068,940.13,938.85,1.5972152]
[1768371303365,0.77362068,940.12,938.86,1.5972152]
[1768371303661,0.77362068,940.11,938.86,1.5972152]
[1768371303964,0.77362068,940.1,938.86,1.5972152]
[1768371304165,0.77362068,940.09,938.86,1.5972152]
[1768371304361,0.77362068,940.08,938.86,1.5972152]
[1768371304561,0.77362068,940.07,938.86,1.5972152]
[1768371304764,0.77362068,940.06,938.86,1.5972152]
[1768371305060,0.77362068,940.05,938.86,1.5972152]
[1768371305262,0.77362068,940.04,938.86,1.5972152]
[1768371305465,0.77362068,940.03,938.86,1.5972152]
[1768371305665,0.77362068,940.02,938.86,1.5972152]
[1768371305965,0.77362068,940.01,938.83,1.5972152]
[1768371306166,0.77362068,940.0,938.83,1.5972152]
[1768371306362,0.77362068,939.99,938.83,1.5972152]
[1768371306566,0.77362068,939.98,938.83,1.5972152]
[1768371306767,0.77362068,939.97,938.83,1.5972152]
[1768371306966,0.77362068,939.96,938.83,1.5972152]
[1768371307264,0.77362068,939.95,938.84,1.5972152]
[1768371307462,0.77362068,939.94,938.84,1.5972152]
[1768371307766,0.77362068,939.93,938.84,1.5972152]
[1768371307966,0.77362068,939.92,938.84,1.5972152]
[1768371308169,0.77362068,939.91,938.84,1.5972152]
[1768371308362,0.77362068,939.9,938.84,1.5972152]
[1768371308567,0.77362068,939.89,938.84,1.5972152]
[1768371308868,0.77362068,939.88,938.84,1.5972152]
[1768371309068,0.77362068,939.87,938.84,1.5972152]
[1768371309369,0.77362068,939.86,938.84,1.5972152]
[1768371309666,0.77362068,939.85,938.84,1.5972152]
[1768371309863,0.77362068,939.84,938.84,1.5972152]
[1768371310063,0.77362068,939.83,938.84,1.5972152]
[1768371310262,0.77362068,939.82,938.84,1.5972152]
[1768371310462,0.77362068,939.81,938.84,1.5972152]
[1768371310767,0.77362068,939.8,938.84,1.5972152]
[1768371311064,0.77362068,939.79,938.84,1.5972152]
[1768371311264,0.77362068,939.78,938.85,1.5972152]
[1768371311464,0.77362068,939.77,938.85,1.5972152]
[1768371311666,0.77362068,939.76,938.85,1.5972152]
[1768371311865,0.77362068,939.75,938.85,1.5972152]
[1768371312063,0.77362068,939.74,938.85,1.5972152]
[1768371312267,0.77362068,939.73,938.86,1.5972152]
[1768371312465,0.77362068,939.72,938.86,1.5972152]
[1768371312664,0.18525222,940.4,938.86,1.5972152]
[1768371312665,0.77362068,939.71,938.86,1.5972152]
[1768371312868,0.77362068,939.7,938.86,1.5972152]
[1768371313068,0.77362068,939.69,938.86,1.5972152]
[1768371313365,0.77362068,939.68,938.86,1.5972152]
[1768371313565,0.77362068,939.67,938.86,1.5972152]
[1768371313864,0.77362068,939.66,938.86,1.5972152]
[1768371314064,0.77362068,939.65,938.86,1.5972152]
[1768371314265,0.77362068,939.64,938.86,1.5972152]
[1768371314464,0.77362068,939.63,938.86,1.5972152]
[1768371314665,0.77362068,939.62,938.86,1.5972152]
[1768371314968,0.77362068,939.61,938.86,1.5972152]
[1768371315169,0.77362068,939.6,938.86,1.5972152]
[1768371315469,0.77362068,939.59,938.86,1.5972152]
[1768371315670,0.77362068,939.58,938.86,1.5972152]
[1768371315870,0.77362068,939.57,938.86,1.5972152]
[1768371316067,0.77362068,939.56,938.86,1.5972152]
[1768371316370,0.77362068,939.55,938.86,1.5972152]
[1768371316570,0.77362068,939.54,938.86,1.5972152]
[1768371316867,0.77362068,939.53,938.86,1.5972152]
[1768371317072,0.77362068,939.52,938.86,1.5972152]
[1768371317270,0.77362068,939.51,938.86,1.5972152]
[1768371317468,0.77362068,939.5,938.86,1.5972152]
[1768371317671,0.77362068,939.49,938.86,1.5972152]
[1768371317866,0.77362068,939.48,938.86,1.5972152]
[1768371318168,0.77362068,939.47,938.86,1.5972152]
[1768371318366,0.77362068,939.46,938.86,1.5972152]
[1768371318574,0.77362068,939.45,938.86,1.5972152]
[1768371318767,0.77362068,939.44,938.86,1.5972152]
[1768371318968,0.77362068,939.43,938.86,1.5972152]
[1768371319168,0.77362068,939.42,938.86,1.5972152]
[1768371319371,0.18525222,940.4,938.86,1.5972152]
[1768371319372,0.77362068,939.41,938.86,1.5972152]
[1768371319571,0.77362068,939.4,938.86,1.5972152]
[1768371319774,0.77362068,939.39,938.86,1.5972152]
[1768371320070,0.77362068,939.38,938.86,1.5972152]
[1768371320274,0.77362068,939.37,938.86,1.5972152]
[1768371320470,0.77362068,939.36,938.86,1.5972152]
[1768371320671,0.77362068,939.35,938.86,1.5972152]
[1768371320974,0.77362068,939.34,938.86,1.5972152]
[1768371321175,0.77362068,939.33,938.86,1.5972152]
[1768371321470,0.77362068,939.32,938.86,1.5972152]
[1768371321670,3.6976182,941.36,938.86,1.5972152]
[1768371321671,0.77362068,939.31,938.86,1.5972152]
[1768371321872,0.77362068,939.3,938.86,1.5972152]
[1768371322070,0.77362068,939.29,938.86,1.5972152]
[1768371322270,0.77362068,939.28,938.86,1.5972152]
[1768371322473,0.77362068,939.27,938.86,1.5972152]
[1768371322677,0.77362068,939.26,938.86,1.5972152]
[1768371322874,0.77362068,939.25,938.86,1.5972152]
[1768371323173,0.77362068,939.24,938.86,1.5972152]
[1768371323373,0.77362068,939.23,938.86,1.5972152]
[1768371323577,0.77362068,939.22,938.86,1.5972152]
[1768371323776,0.77362068,939.21,938.86,1.5972152]
[1768371323978,0.77362068,939.2,938.86,1.5972152]
[1768371324182,0.77362068,939.19,938.86,1.5972152]
[1768371324478,0.77362068,939.18,938.86,1.5972152]
[1768371324777,0.77359233,939.17,938.86,1.5972152]
[1768371324972,0.77359233,939.16,938.87,1.5972152]
[1768371325176,0.77359233,939.15,938.87,1.5972152]
[1768371325377,0.77359233,939.14,938.87,1.5972152]
[1768371325675,0.77359233,939.13,938.87,1.5972152]
[1768371325874,0.77359233,939.12,938.87,1.5972152]
[1768371326074,0.77359233,939.11,938.87,1.5972152]
[1768371326278,0.77359233,939.1,938.87,1.5972152]
[1768371326479,0.77359233,939.09,938.87,1.5972152]
[1768371326679,0.06084123,939.08,938.87,1.5972152]
[1768371326876,0.18519603,940.42,938.87,1.5972152]
[1768371327278,0.18519603,940.42,938.85,1.5972152]
[1768371327279,0.01295057,940.02,938.85,1.5972152]
[1768371327574,0.18519603,940.42,938.85,1.5972152]
[1768371329980,0.01297987,940.96,938.85,1.5972152]
[1768371330581,0.18509703,940.44,938.85,1.5972152]
[1768371331279,0.18509703,940.44,938.86,1.5972152]
[1768371338588,0.76321902,940.43,938.86,1.5972152]
[1768371338786,0.76321902,940.42,938.86,1.5972152]
[1768371338986,0.76321902,940.41,938.86,1.5972152]
[1768371339189,0.18509703,940.44,938.86,1.5972152]
[1768371339390,0.76322411,940.43,938.87,1.5972152]
[1768371339589,0.76322411,940.42,938.87,1.5972152]
[1768371339890,0.76322411,940.41,938.87,1.5972152]
[1768371340090,0.76322411,940.4,938.87,1.5972152]
[1768371340286,0.76322411,940.39,938.87,1.5972152]
[1768371340488,0.76322411,940.38,938.87,1.5972152]
[1768371340687,0.76322411,940.37,938.87,1.5972152]
[1768371340987,0.76322411,940.36,938.87,1.5972152]
[1768371341289,0.76322411,940.35,938.87,1.5972152]
[1768371341490,0.76322411,940.34,938.87,1.5972152]
[1768371341687,0.76322411,940.33,938.87,1.5972152]
[1768371341990,0.76322411,940.32,938.87,1.5972152]
[1768371342289,0.76322411,940.31,938.89,1.5972152]
[1768371342486,0.18509703,940.44,938.89,1.5972152]
[1768371342688,0.76326571,940.43,938.89,1.5972152]
[1768371342887,0.76326571,940.42,938.89,1.5972152]
[1768371343090,0.76326571,940.41,938.89,1.5972152]
[1768371343290,0.76326571,940.4,938.89,1.5972152]
[1768371343487,0.76326571,940.39,938.89,1.5972152]
[1768371343785,0.18509703,940.44,938.89,1.5972152]
[1768371343786,0.76326571,940.38,938.89,1.5972152]
[1768371343991,0.76326571,940.37,938.89,1.5972152]
[1768371344190,0.76326571,940.36,938.92,1.5972152]
[1768371344386,0.76326571,940.35,938.92,1.5972152]
[1768371344586,0.76326571,940.34,938.92,1.5972152]
[1768371344785,0.76326571,940.33,938.92,1.5972152]
[1768371344989,0.76326571,940.32,938.92,1.5972152]
[1768371345191,0.76326571,940.31,938.92,1.5972152]
[1768371345388,0.76326571,940.3,938.93,1.5972152]
[1768371345686,0.76326571,940.29,938.93,1.5972152]
[1768371345988,0.76326571,940.28,938.93,1.5972152]
[1768371346191,0.76326571,940.27,938.93,1.5972152]
[1768371346487,0.76326571,940.26,938.94,1.5972152]
[1768371346687,0.76326571,940.25,938.94,1.5972152]
[1768371346891,0.76326571,940.24,938.94,1.5972152]
[1768371347086,0.76326571,940.23,938.94,1.5972152]
[1768371347292,0.76326571,940.22,938.93,1.5972152]
[1768371347491,0.76326571,940.21,938.93,1.5972152]
[1768371347787,0.76326571,940.2,938.93,1.5972152]
[1768371347988,0.76326571,940.19,938.93,1.5972152]
[1768371348187,0.76326571,940.18,938.93,1.5972152]
[1768371348486,0.76326571,940.17,938.93,1.5972152]
[1768371348691,0.76326571,940.16,938.93,1.5972152]
[1768371348991,0.76326571,940.15,938.93,1.5972152]
[1768371349287,0.76326571,940.14,938.93,1.5972152]
[1768371349588,0.761499,940.13,938.82,0.18509605]
[1768371349788,0.761499,940.12,938.82,0.18509605]
[1768371349990,0.761499,940.11,938.82,0.18509605]
[1768371350286,0.761499,940.1,938.82,0.18509605]
[1768371350485,0.761499,940.09,938.82,0.18509605]
[1768371350691,0.761499,940.08,938.82,0.18509605]
[1768371350889,0.761499,940.07,938.93,1.5955893]
[1768371351093,0.761499,940.06,938.93,1.5955893]
[1768371351288,0.761499,940.05,938.92,1.5955893]
[1768371351492,0.761499,940.04,938.92,1.5955893]
[1768371351689,0.761499,940.03,938.92,1.5955893]
[1768371351890,0.761499,940.02,938.92,1.5955893]
[1768371352092,0.761499,940.01,938.92,1.5955893]
[1768371352392,0.761499,940.0,938.92,1.5955893]
[1768371352692,0.761499,939.99,938.92,1.5955893]
[1768371352994,0.761499,939.98,938.92,1.5955893]
[1768371353190,0.761499,939.97,938.92,1.5955893]
[1768371353391,0.761499,939.96,938.92,1.5955893]
[1768371353695,0.761499,939.95,938.92,1.5955893]
[1768371353896,0.761499,939.94,938.92,1.5955893]
[1768371354093,0.761499,939.93,938.92,1.5955893]
[1768371354292,0.761499,939.92,938.91,1.5955893]
[1768371354590,0.761499,939.91,938.91,1.5955893]
[1768371354794,0.761499,939.9,938.91,1.5955893]
[1768371354994,0.761499,939.89,938.92,1.5955893]
[1768371355190,0.761499,939.88,938.91,1.5955893]
[1768371355391,0.761499,939.87,938.91,1.5955893]
[1768371355592,0.76123113,939.86,938.91,1.5955893]
[1768371355893,0.76123113,939.85,938.91,1.5955893]
[1768371356098,0.76123113,939.84,938.91,1.5955893]
[1768371356292,0.76123113,939.83,938.91,1.5955893]
[1768371356498,0.76123113,939.82,938.91,1.5955893]
[1768371356793,0.76123113,939.81,938.91,1.5955893]
[1768371356992,0.76123113,939.8,938.91,1.5955893]
[1768371357197,0.76123113,939.79,938.91,1.5955893]
[1768371357394,0.76123113,939.78,938.91,1.5955893]
[1768371357597,0.76123113,939.77,938.91,1.5955893]
[1768371357799,0.76123113,939.76,938.91,1.5955893]
[1768371357995,0.76123113,939.75,938.91,1.5955893]
[1768371358197,0.76123113,939.74,938.91,1.5955893]
[1768371358493,0.76123113,939.73,938.91,1.5955893]
[1768371358799,0.76123113,939.72,938.91,1.5955893]
[1768371359099,0.76123113,939.71,938.91,1.5955893]
[1768371359297,0.76123113,939.7,938.91,1.5955893]
[1768371359494,0.76123113,939.69,938.91,1.5955893]
[1768371359696,0.76123113,939.68,938.91,1.5955893]
[1768371359994,0.76123113,939.67,938.91,1.5955893]
[1768371360196,0.76123113,939.66,938.91,1.5955893]
[1768371360394,0.76123113,939.65,938.91,1.5955893]
[1768371360593,0.76123113,939.64,938.91,1.5955893]
[1768371360795,0.76123113,939.63,938.91,1.5955893]
[1768371360995,0.76123113,939.62,938.91,1.5955893]
[1768371361195,0.76123113,939.61,938.91,1.5955893]
[1768371361394,0.76123113,939.6,938.91,1.5955893]
[1768371361695,0.76123113,939.59,938.91,1.5955893]
[1768371361897,0.76123113,939.58,938.91,1.5955893]
[1768371362095,0.76123113,939.57,938.91,1.5955893]
[1768371362396,0.76123113,939.56,938.91,1.5955893]
[1768371362596,0.76123113,939.55,938.9,1.5955893]
[1768371362796,0.76123113,939.54,938.85,1.5955893]
[1768371362999,0.76123113,939.54,938.82,0.18509605]
[1768371363000,0.76123113,939.53,938.82,0.18509605]
[1768371363198,0.76123113,939.52,938.82,0.18509605]
[1768371363398,0.76123113,939.51,938.82,0.18509605]
[1768371363599,0.76123113,939.5,938.82,0.18509605]
[1768371363799,0.76123113,939.49,938.82,0.18509605]
[1768371364001,0.76123113,939.48,938.82,0.18509605]
[1768371364201,0.76123113,939.47,938.82,0.18509605]
[1768371364397,0.76123113,939.46,938.82,0.18509605]
[1768371364602,0.76123113,939.45,938.82,0.18509605]
[1768371364798,0.76123113,939.44,938.82,0.18509605]
[1768371365102,0.76123113,939.43,938.82,0.18509605]
[1768371365300,0.76123113,939.42,938.82,0.18509605]
[1768371365503,0.76123113,939.41,938.82,0.18509605]
[1768371365699,0.76123113,939.4,938.82,0.18509605]
[1768371365900,0.76123113,939.39,938.82,0.18509605]
[1768371366104,0.76123113,939.38,938.82,0.18509605]
[1768371366300,0.76123113,939.37,938.82,0.18509605]
[1768371366502,0.76123113,939.36,938.82,0.18509605]
[1768371366708,0.76123113,939.35,938.61,1.5955893]
[1768371367005,0.76123113,939.34,938.6,0.18522856]
[1768371367201,0.76123113,939.33,938.6,0.18522856]
[1768371367405,0.76123113,939.32,938.6,0.18522856]
[1768371367605,0.76123113,939.31,938.6,0.18522856]
[1768371367801,0.76123113,939.3,938.6,0.18522856]
[1768371368002,0.76123113,939.29,938.6,0.18522856]
[1768371368304,0.76123113,939.28,938.6,0.18522856]
[1768371368506,0.76123113,939.27,938.6,0.18522856]
[1768371368805,0.76123113,939.26,938.6,0.18522856]
[1768371369102,0.76123113,939.25,938.6,0.18522856]
[1768371369306,0.76123113,939.24,938.6,0.18522856]
[1768371369506,0.76123113,939.23,938.6,0.18522856]
[1768371369705,0.76123113,939.22,938.6,0.18522856]
[1768371369906,0.76123113,939.21,938.6,0.18522856]
[1768371370107,0.76123113,939.2,938.6,0.18522856]
[1768371370305,0.76123113,939.19,938.6,0.18522856]
[1768371370509,0.76123113,939.18,938.6,0.18522856]
[1768371370707,0.76123113,939.17,938.6,0.18522856]
[1768371371006,0.76123113,939.16,938.6,0.18522856]
[1768371371207,0.18513051,940.55,938.6,0.18522856]
[1768371371208,0.76123113,939.15,938.6,0.18522856]
[1768371371510,0.76123113,939.14,938.6,0.18522856]
[1768371371711,0.00879007,940.11,938.6,0.18522856]
[1768371371712,0.76123113,939.13,938.6,0.18522856]
[1768371371911,0.76123113,939.12,938.6,0.18522856]
[1768371372112,0.76123113,939.11,938.6,0.18522856]
[1768371372307,0.76123113,939.1,938.6,0.18522856]
[1768371372507,0.76123113,939.09,938.6,0.18522856]
[1768371372708,0.76123113,939.08,938.6,0.18522856]
[1768371372913,0.76123113,939.07,938.6,0.18522856]
[1768371373113,0.76123113,939.06,938.6,0.18522856]
[1768371373309,0.76123113,939.05,938.6,0.18522856]
[1768371373513,0.76123113,939.04,938.6,0.18522856]
[1768371373808,0.76123113,939.03,938.6,0.18522856]
[1768371374013,0.76123113,939.02,938.6,0.18522856]
[1768371374213,0.76123113,939.01,938.6,0.18522856]
[1768371374514,0.01063446,939.97,938.6,0.18522856]
[1768371374708,0.75838592,939.96,938.6,0.18522856]
[1768371375014,0.75838592,939.95,938.6,0.18522856]
[1768371375307,0.75838592,939.94,938.6,0.18522856]
[1768371375509,0.75838592,939.93,938.6,0.18522856]
[1768371375709,0.75838592,939.92,938.6,0.18522856]
[1768371375912,0.75838592,939.91,938.6,0.18522856]
[1768371376113,0.75838592,939.9,938.6,0.18522856]
[1768371376413,0.75838592,939.89,938.6,0.18522856]
[1768371376613,0.75838592,939.88,938.6,0.18522856]
[1768371376913,0.75838592,939.87,938.6,0.18522856]
[1768371377109,0.75838592,939.86,938.6,0.18522856]
[1768371377313,0.75838592,939.85,938.6,0.18522856]
[1768371377509,0.75838592,939.84,938.6,0.18522856]
[1768371377708,0.75838592,939.83,938.6,0.18522856]
[1768371378012,0.75838592,939.82,938.6,0.18522856]
[1768371378314,0.75838592,939.81,938.6,0.18522856]
[1768371378513,0.75838592,939.8,938.6,0.18522856]
[1768371378813,0.75838592,939.79,938.6,0.18522856]
[1768371379009,0.75838592,939.78,938.6,0.18522856]
[1768371379212,0.75838592,939.77,938.6,0.18522856]
[1768371379411,0.75838592,939.76,938.6,0.18522856]
[1768371379715,0.75838592,939.75,938.6,0.18522856]
[1768371379916,0.75838592,939.74,938.6,0.18522856]
[1768371380215,0.75838592,939.73,938.4,1.5955893]
[1768371380416,0.75838592,939.72,938.4,1.5955893]
[1768371380612,0.75838592,939.71,938.4,1.5955893]
[1768371380813,0.75838592,939.7,938.4,1.5955893]
[1768371381017,0.75838592,939.69,938.4,1.5955893]
[1768371381218,0.75791046,939.68,938.4,1.5955893]
[1768371381518,0.75791046,939.67,938.4,1.5955893]
[1768371381716,0.75791046,939.66,938.4,1.5955893]
[1768371381915,0.75791046,939.65,938.4,1.5955893]
[1768371382115,0.75791046,939.64,938.4,1.5955893]
[1768371382418,0.75791046,939.63,938.39,1.5955893]
[1768371382613,0.0085965,940.61,938.39,1.5955893]
[1768371382614,0.75791046,939.62,938.39,1.5955893]
[1768371382814,0.75791046,939.61,938.39,1.5955893]
[1768371383015,0.75791046,939.6,938.39,1.5955893]
[1768371383216,0.75791046,939.59,938.39,1.5955893]
[1768371383414,0.75791046,939.58,938.39,1.5955893]
[1768371383619,0.75791046,939.57,938.39,1.5955893]
[1768371383818,0.75791046,939.56,938.39,1.5955893]
[1768371384019,0.75791046,939.55,938.39,1.5955893]
[1768371384220,0.75791046,939.54,938.39,1.5955893]
[1768371384419,0.75791046,939.53,938.39,1.5955893]
[1768371384622,0.75791046,939.52,938.39,1.5955893]
[1768371384821,0.75791046,939.51,938.39,1.5955893]
[1768371385122,0.75791046,939.5,938.39,1.5955893]
[1768371385417,0.75791046,939.49,938.39,1.5955893]
[1768371385618,0.75791046,939.48,938.39,1.5955893]
[1768371385817,0.75791046,939.47,938.61,0.18523891]
[1768371386022,0.75791046,939.46,938.61,0.18523891]
[1768371386219,0.75791046,939.45,938.61,0.18523891]
[1768371386420,0.75791046,939.44,938.61,0.18523891]
[1768371386622,0.75791046,939.43,938.61,0.18523891]
[1768371386924,0.75791046,939.42,938.61,0.18523891]
[1768371387118,0.75791046,939.41,938.61,0.18523891]
[1768371387319,0.75791046,939.4,938.61,0.18523891]
[1768371387519,0.75791046,939.39,938.61,0.18523891]
[1768371387720,0.75791046,939.38,938.61,0.18523891]
[1768371387921,0.75791046,939.37,938.61,0.18523891]
[1768371388119,0.75791046,939.36,938.61,0.18523891]
[1768371388325,0.75791046,939.35,938.61,0.18523891]
[1768371388520,0.18523891,940.14,938.61,0.18523891]
[1768371388722,0.75749647,940.13,938.61,0.18523891]
[1768371388925,0.75749647,940.12,938.61,0.18523891]
[1768371389124,0.75749647,940.11,938.61,0.18523891]
[1768371389323,0.75749647,940.1,938.61,0.18523891]
[1768371389520,0.75749647,940.09,938.61,0.18523891]
[1768371389720,0.75749647,940.08,938.61,0.18523891]
[1768371389921,0.75749647,940.07,938.61,0.18523891]
[1768371390124,0.75749647,940.06,938.61,0.18523891]
[1768371390323,0.75749647,940.05,938.61,0.18523891]
[1768371390525,0.75749647,940.04,938.61,0.18523891]
[1768371390724,0.75749647,940.03,938.61,0.18523891]
[1768371390927,0.75749647,940.02,938.61,0.18523891]
[1768371391227,0.75749647,940.01,938.61,0.18523891]
[1768371391428,0.75749647,940.0,938.61,0.18523891]
[1768371391722,0.75749647,939.99,938.61,0.18523891]
[1768371391927,0.75749647,939.98,938.61,0.18523891]
[1768371392227,0.75749647,939.97,938.61,0.18523891]
[1768371392427,0.75749647,939.96,938.61,0.18523891]
[1768371392622,0.75749647,939.95,938.61,0.18523891]
[1768371392822,0.18523891,940.14,938.61,0.18523891]
[1768371392823,0.75749647,939.94,938.61,0.18523891]
[1768371393025,0.75749647,939.93,938.61,0.18523891]
[1768371393225,0.75749647,939.92,938.61,0.18523891]
[1768371393424,0.75749647,939.91,938.61,0.18523891]
[1768371393627,0.75749647,939.9,938.61,0.18523891]
[1768371393824,0.75749647,939.89,938.61,0.18523891]
[1768371394124,0.75749647,939.88,938.61,0.18523891]
[1768371394324,0.75749647,939.87,938.61,0.18523891]
[1768371394524,0.75749647,939.86,938.61,0.18523891]
[1768371394725,0.75749647,939.85,938.61,0.18523891]
[1768371394928,0.75749647,939.84,938.61,0.18523891]
[1768371395126,0.75749647,939.83,938.61,0.18523891]
[1768371395327,0.75749647,939.82,938.61,0.18523891]
[1768371395527,0.18523891,940.14,938.61,0.18523891]
[1768371395528,0.75749647,939.81,938.61,0.18523891]
[1768371395730,0.75749647,939.8,938.61,0.18523891]
[1768371396027,0.75749647,939.79,938.61,0.18523891]
[1768371396228,0.75749647,939.78,938.61,0.18523891]
[1768371396430,0.75749647,939.77,938.61,0.18523891]
[1768371396626,0.75749647,939.76,938.61,0.18523891]
[1768371396831,0.75749647,939.75,938.61,0.18523891]
[1768371397031,0.75749647,939.74,938.61,0.18523891]
[1768371397232,0.75749647,939.73,938.61,0.18523891]
[1768371397428,0.75749647,939.72,938.61,0.18523891]
[1768371397632,0.75749647,939.71,938.61,0.18523891]
[1768371397829,0.75749647,939.7,938.61,0.18523891]
[1768371398132,0.75749647,939.69,938.61,0.18523891]
[1768371398330,0.75749647,939.68,938.61,0.18523891]
[1768371398530,0.75749647,939.67,938.61,0.18523891]
[1768371398733,0.75749647,939.66,938.61,0.18523891]
[1768371399032,0.75749647,939.65,938.61,0.18523891]
[1768371399233,0.75749647,939.64,938.61,0.18523891]
[1768371399528,0.75749647,939.63,938.61,0.18523891]
[1768371399730,0.75749647,939.62,938.61,0.18523891]
[1768371400033,0.75749647,939.61,938.61,0.18523891]
[1768371400228,0.75749647,939.6,938.61,0.18523891]
[1768371400431,0.75749647,939.59,938.61,0.18523891]
[1768371400630,0.75749647,939.58,938.61,0.18523891]
[1768371400831,0.75749647,939.57,938.61,0.18523891]
[1768371401033,0.75749647,939.56,938.61,0.18523891]
[1768371401333,0.75749647,939.55,938.61,0.18523891]
[1768371401533,0.75749647,939.54,938.61,0.18523891]
[1768371401732,0.75749647,939.53,938.61,0.18523891]
[1768371401934,0.75749647,939.52,938.61,0.18523891]
[1768371402231,0.75749647,939.51,938.61,0.18523891]
[1768371402532,0.75749647,939.5,938.61,0.18523891]
[1768371402733,0.75749647,939.49,938.61,0.18523891]
[1768371402933,0.75749647,939.48,938.61,0.18523891]
[1768371403230,0.75749647,939.47,938.61,0.18523891]
[1768371403429,0.75749647,939.46,938.61,0.18523891]
[1768371403628,0.75749647,939.45,938.61,0.18523891]
[1768371403832,0.75749647,939.44,938.61,0.18523891]
[1768371404033,0.75749647,939.43,938.61,0.18523891]
[1768371404231,0.75749647,939.42,938.61,0.18523891]
[1768371404432,0.75749647,939.41,938.61,0.18523891]
[1768371404636,0.75749647,939.4,938.61,0.18523891]
[1768371404835,0.75749647,939.39,938.61,0.18523891]
[1768371405034,0.75749647,939.38,938.61,0.18523891]
[1768371405335,0.75749647,939.37,938.61,0.18523891]
[1768371405535,0.75749647,939.36,938.61,0.18523891]
[1768371405734,0.75749647,939.35,938.61,0.18523891]
[1768371405933,0.75749647,939.34,938.61,0.18523891]
[1768371406134,0.75749647,939.33,938.61,0.18523891]
[1768371406332,0.75749647,939.32,938.61,0.18523891]
[1768371406534,0.75749647,939.31,938.61,0.18523891]
[1768371406738,0.75749647,939.3,938.61,0.18523891]
[1768371407038,0.75749647,939.29,938.61,0.18523891]
[1768371407238,0.75749647,939.28,938.61,0.18523891]
[1768371407438,0.75749647,939.27,938.61,0.18523891]
[1768371407735,0.75749647,939.26,938.61,0.18523891]
[1768371407938,0.75749647,939.25,938.61,0.18523891]
[1768371408136,0.75749647,939.24,938.61,0.18523891]
[1768371408339,0.75749647,939.23,938.61,0.18523891]
[1768371408541,0.75749647,939.22,938.61,0.18523891]
[1768371408741,0.75749647,939.21,938.61,0.18523891]
[1768371408941,0.75749647,939.2,938.61,0.18523891]
[1768371409241,0.75749647,939.19,938.61,0.18523891]
[1768371409542,0.75749647,939.18,938.61,0.18523891]
[1768371409741,0.75749647,939.17,938.61,0.18523891]
[1768371409942,0.75749647,939.16,938.61,0.18523891]
[1768371410143,0.75749647,939.15,938.61,0.18523891]
[1768371410340,0.75749647,939.14,938.61,0.18523891]
[1768371410645,0.75749647,939.13,938.61,0.18523891]
[1768371410842,0.75749647,939.12,938.61,0.18523891]
[1768371411045,0.75749647,939.11,938.61,0.18523891]
[1768371411240,0.75749647,939.1,938.61,0.18523891]
[1768371411440,0.75749647,939.09,938.61,0.18523891]
[1768371411647,0.75749647,939.08,938.61,0.18523891]
[1768371411845,0.75749647,939.07,938.61,0.18523891]